bitfinex/quotes_ETHUSD_20220118
["timestamp","ask_amount","ask_price","bid_price","bid_amount"]
[1642542639741,0.79059,3163.7,3163.6,1.9380159]
[1642542640144,0.3,3163.8,3163.6,1.9380159]
[1642542640343,0.30113685,3163.9,3163.6,1.9380159]
[1642542641351,1.88224315,3163.9,3163.6,1.9380159]
[1642542641648,1.58114,3163.8,3163.6,1.9380159]
[1642542643797,0.00113685,3163.9,3163.6,1.9380159]
[1642542643997,0.00113685,3163.9,3163.7,2.50382541]
[1642542644200,0.00113685,3163.9,3163.8,2.7264]
[1642542644396,0.00113685,3163.9,3163.8,2.6]
[1642542644600,0.00113685,3163.9,3163.8,5.18055544]
[1642542645099,0.00113685,3163.9,3163.6,2.0644159]
[1642542645903,0.00113685,3163.9,3163.7,2.45758201]
[1642542646100,0.00113685,3163.9,3163.6,2.0644159]
[1642542647445,0.00113685,3163.9,3163.7,2.44805152]
[1642542647649,0.00113685,3163.9,3163.8,5.5764]
[1642542647849,0.00113685,3163.9,3163.8,8.21891378]
[1642542648249,0.00113685,3163.9,3163.8,2.76891378]
[1642542648451,0.00113685,3163.9,3163.8,5.45387051]
[1642542648849,0.00113685,3163.9,3163.8,2.81135673]
[1642542649052,0.00113685,3163.9,3163.8,2.68495673]
[1642542649248,0.00113685,3163.9,3163.6,2.0644159]
[1642542649450,0.79057,3163.8,3163.6,2.0644159]
[1642542649850,2.671926,3163.8,3163.6,2.0644159]
[1642542650091,2.905126,3163.8,3163.6,2.0644159]
[1642542650290,3.205126,3163.8,3163.6,2.0644159]
[1642542650494,5.2281644,3163.7,3163.6,2.0644159]
[1642542650894,5.2281644,3163.7,3163.4,2.14098473]
[1642542650895,18.5,3163.5,3163.4,2.14098473]
[1642542651100,6.29087,3163.4,3163.0,46.11921518]
[1642542651393,0.38,3163.3,3163.1,0.00227369]
[1642542651593,1.2233,3163.3,3163.1,0.00227369]
[1642542651793,1.51498631,3163.2,3163.1,0.00227369]
[1642542651994,2.19498631,3163.2,3163.1,0.00227369]
[1642542653844,1.89498631,3163.2,3163.1,0.00227369]
[1642542656751,1.89498631,3163.2,3163.1,2.68778482]
[1642542658095,1.89498631,3163.2,3163.1,0.00227369]
[1642542658798,0.38,3163.2,3163.1,0.00227369]
[1642542659396,0.38,3163.2,3163.1,0.12867369]
[1642542659797,0.38,3163.2,3163.1,2.81407319]
[1642542661747,0.38,3163.2,3163.1,2.68767319]
[1642542662351,0.38,3163.2,3163.1,0.00227369]
[1642542663754,5.98,3163.2,3163.1,0.00227369]
[1642542664996,6.1064,3163.2,3163.1,0.00227369]
[1642542665197,3.17915,3163.2,3163.1,0.00227369]
[1642542666097,2.75275,3163.2,3163.1,0.00227369]
[1642542666506,3.05275,3163.2,3163.1,0.00227369]
[1642542667106,2.75275,3163.2,3163.1,0.00227369]
[1642542668605,3.05275,3163.2,3163.1,0.00227369]
[1642542669953,21.55275,3163.2,3163.1,0.00227369]
[1642542670153,22.82605,3163.2,3163.1,0.00227369]
[1642542670353,22.82605,3163.2,3163.0,38.24047735]
[1642542670354,6.34099,3163.1,3163.0,38.24047735]
[1642542670555,27.62549,3163.1,3163.0,26.30311426]
[1642542670755,1.58204,3162.8,3162.0,0.1264]
[1642542670956,1.52556949,3162.1,3161.9,2.26897527]
[1642542671155,4.58,3162.0,3161.9,2.26897527]
[1642542671355,4.58,3162.0,3161.5,1.47471959]
[1642542671663,3.4647225,3161.9,3161.4,0.1265]
[1642542671857,3.4647225,3161.9,3161.2,0.1265]
[1642542671858,3.16464,3161.8,3161.2,0.1265]
[1642542672057,3.16464,3161.8,3161.5,0.00909478]
[1642542672058,0.38,3161.7,3161.5,0.00909478]
[1642542672253,0.68,3161.7,3161.5,0.00909478]
[1642542672495,1.58238,3161.6,3161.2,0.13730005]
[1642542672700,0.38,3161.5,3161.2,0.01080005]
[1642542672899,1.96238,3161.5,3161.3,0.01023162]
[1642542673100,1.96238,3161.5,3161.2,0.01080005]
[1642542673101,2.56238,3161.5,3161.2,0.01080005]
[1642542673301,2.56238,3161.5,3161.3,2.68688408]
[1642542673302,3.3535549,3161.5,3161.3,2.68688408]
[1642542673701,3.3535549,3161.5,3161.4,0.0096632]
[1642542673899,3.6535549,3161.5,3161.4,0.0096632]
[1642542674099,3.3535549,3161.5,3161.4,0.0096632]
[1642542674502,1.7711749,3161.5,3161.4,0.0096632]
[1642542674800,0.68,3161.5,3161.4,0.0096632]
[1642542675000,1.17114,3161.5,3161.4,0.0096632]
[1642542675401,1.77114,3161.5,3161.4,0.0096632]
[1642542675601,1.77114,3161.5,3160.8,0.1265]
[1642542675602,0.98,3161.5,3160.9,0.01250532]
[1642542675802,1.5824925,3161.4,3160.9,0.01250532]
[1642542676005,0.79128,3161.3,3160.9,0.01250532]
[1642542676643,1.09128,3161.3,3160.9,0.01250532]
[1642542677043,1.09128,3161.3,3161.0,2.68711262]
[1642542677044,2.67383,3161.3,3161.0,2.68711262]
[1642542677251,2.3738364,3161.2,3161.0,2.68711262]
[1642542677449,2.3738364,3161.2,3161.1,0.01136847]
[1642542678051,1.58255,3161.2,3161.1,0.01136847]
[1642542678652,6.119268,3161.2,3161.1,2.69848109]
[1642542679251,6.119268,3161.2,3161.1,0.01136847]
[1642542679554,6.119268,3161.2,3160.5,0.01477901]
[1642542679752,0.79129,3161.0,3160.6,0.1265]
[1642542679995,1.5826,3161.0,3160.6,0.1265]
[1642542680196,1.5826,3161.0,3160.7,0.01364216]
[1642542680601,0.3,3160.9,3160.7,0.01364216]
[1642542680798,0.7914,3160.8,3160.5,0.01477901]
[1642542681002,1.98290842,3160.7,3160.4,0.01534743]
[1642542681198,2.77430842,3160.7,3160.4,0.01534743]
[1642542681400,0.79142,3160.6,3160.4,0.01534743]
[1642542681598,1.28581566,3160.5,3160.1,4.03032612]
[1642542681799,1.28581566,3160.5,3159.8,1.42471959]
[1642542681800,0.38,3160.4,3159.8,1.42471959]
[1642542681997,0.38,3160.4,3159.8,1.23255926]
[1642542681998,0.5065,3160.4,3159.8,1.23255926]
[1642542682200,2.3748616,3160.3,3159.9,0.00170527]
[1642542682399,0.5065,3160.2,3159.9,0.00170527]
[1642542682600,1.8950894,3160.1,3159.9,0.00170527]
[1642542682901,2.16469034,3160.0,3159.9,0.00170527]
[1642542683201,2.46469034,3160.0,3159.5,2.11408512]
[1642542683399,0.79159,3159.9,3159.5,2.11408512]
[1642542683602,0.79159,3159.9,3159.6,0.00170527]
[1642542683856,0.4764,3160.3,3159.6,0.00170527]
[1642542683857,0.38,3160.4,3159.7,0.1265]
[1642542684055,12.9547,3161.2,3159.7,0.1265]
[1642542684056,0.38,3160.8,3159.7,0.1265]
[1642542684254,0.00113685,3160.1,3159.7,0.1265]
[1642542684755,1.10078284,3160.1,3159.7,0.1265]
[1642542684953,2.37572885,3160.1,3159.7,0.1265]
[1642542685151,2.37572885,3160.1,3159.6,0.00170527]
[1642542685551,2.37572885,3160.1,3159.5,0.0022737]
[1642542685552,0.00113685,3160.1,3159.5,0.0022737]
[1642542685752,0.4265,3160.0,3159.5,0.0022737]
[1642542685954,1.51802,3160.0,3159.5,0.0022737]
[1642542686152,2.97509621,3160.0,3159.3,0.00341054]
[1642542686350,2.97509621,3160.0,3159.1,2.86859014]
[1642542686351,1.21802,3160.0,3159.4,0.00284212]
[1642542686554,0.12763685,3160.1,3159.2,0.00397897]
[1642542686753,0.00113685,3160.1,3159.3,0.1265]
[1642542687156,0.00113685,3160.1,3159.4,0.00284212]
[1642542687798,0.00113685,3160.1,3159.5,0.1265]
[1642542688000,0.00113685,3160.1,3159.6,0.1265]
[1642542688199,0.00397896,3160.0,3159.6,0.1265]
[1642542688400,0.00397896,3160.0,3159.3,0.1265]
[1642542688600,0.00341054,3159.9,3159.2,0.1265]
[1642542689001,0.00284212,3159.8,3159.2,0.1265]
[1642542689302,0.00227369,3159.7,3159.2,0.1265]
[1642542689700,0.00170527,3159.6,3159.2,0.1265]
[1642542690099,0.00113684,3159.5,3159.2,0.1265]
[1642542690300,0.00113684,3159.5,3159.4,2.15479471]
[1642542690500,0.13218423,3160.3,3159.6,0.00473324]
[1642542690703,0.1265,3160.3,3159.6,0.00473324]
[1642542690904,0.79147,3160.2,3159.6,0.00473324]
[1642542691346,0.00454739,3160.1,3159.6,0.00473324]
[1642542691746,0.00397896,3160.0,3159.6,0.00473324]
[1642542692245,0.00397896,3160.0,3159.3,0.1265]
[1642542692246,0.00341054,3159.9,3159.3,0.08123324]
[1642542692650,0.00284212,3159.8,3159.3,0.08123324]
[1642542692853,0.00284212,3159.8,3159.3,0.09374287]
[1642542693053,0.00227369,3159.7,3159.4,0.08823307]
[1642542693255,0.00227369,3159.7,3159.5,0.1265]
[1642542693452,0.47863301,3161.0,3159.6,2.32340787]
[1642542693453,0.60513301,3161.0,3159.6,2.32340787]
[1642542693653,0.60513301,3161.0,3160.2,1.28871136]
[1642542693854,0.00852635,3160.8,3160.2,1.28871136]
[1642542694156,0.13445793,3160.7,3159.9,0.1265]
[1642542694353,0.00795793,3160.7,3159.9,0.1265]
[1642542694553,0.0073895,3160.6,3159.9,0.1265]
[1642542694755,0.7987695,3160.6,3159.9,0.1265]
[1642542695003,2.36144221,3161.0,3159.9,2.6126765]
[1642542695004,0.13332108,3160.5,3159.9,2.6126765]
[1642542695198,0.00682108,3160.5,3160.1,2.32000926]
[1642542695399,0.1265,3160.9,3160.1,2.32000926]
[1642542695400,0.00625266,3160.4,3160.1,2.32000926]
[1642542695597,0.00625266,3160.4,3159.9,2.6126765]
[1642542695798,0.00568423,3160.3,3159.9,2.6126765]
[1642542696199,0.00511581,3160.2,3159.9,2.6126765]
[1642542696499,0.00454739,3160.1,3159.8,6.9246]
[1642542696697,0.00454739,3160.1,3159.9,2.27899619]
[1642542696900,0.00397896,3160.0,3159.9,4.79717054]
[1642542697300,0.00682108,3160.0,3159.9,4.74717054]
[1642542697903,0.00682108,3160.0,3159.9,4.72058048]
[1642542698102,0.00682108,3160.0,3159.9,4.74965169]
[1642542699457,0.00682108,3160.0,3159.9,7.43732104]
[1642542699857,0.00682108,3160.0,3159.9,7.38732104]
[1642542700261,0.00682108,3160.0,3159.9,7.51382104]
[1642542701659,0.00682108,3160.0,3159.9,7.46382104]
[1642542705410,0.00682108,3160.0,3159.9,11.12199104]
[1642542706253,0.46978196,3161.3,3160.2,0.01193798]
[1642542706548,0.92167896,3161.2,3160.2,0.01193798]
[1642542706948,0.00341054,3161.1,3160.2,0.01193798]
[1642542707347,0.00284212,3161.0,3160.2,0.01193798]
[1642542707552,0.00284212,3161.0,3160.3,1.34589196]
[1642542707754,0.34328196,3161.3,3160.2,0.01193798]
[1642542707755,0.00227369,3160.9,3160.5,2.15477313]
[1642542708155,0.00170527,3160.8,3160.6,2.495852]
[1642542708354,0.00170527,3160.8,3160.5,2.15477313]
[1642542708555,0.00113685,3160.7,3160.5,2.15477313]
[1642542709055,0.00113685,3160.7,3160.6,2.68766935]
[1642542709997,0.00113685,3160.7,3160.5,2.15477313]
[1642542712203,0.00113685,3160.7,3160.6,2.68746309]
[1642542713013,0.00113685,3160.7,3160.5,2.15477313]
[1642542713608,0.00113685,3160.7,3160.6,5.13760337]
[1642542714445,0.00113685,3160.7,3160.6,7.61132542]
[1642542715647,0.00113685,3160.7,3160.6,7.56132542]
[1642542715847,0.00113685,3160.7,3160.6,7.53957557]
[1642542716145,0.00113685,3160.7,3160.6,7.57382226]
[1642542716545,0.00113685,3160.7,3160.6,2.63760337]
[1642542717801,0.00113685,3160.7,3160.6,2.58760337]
[1642542719403,0.00113685,3160.7,3160.6,5.04266579]
[1642542720205,0.00113685,3160.7,3160.6,10.46916579]
[1642542720403,0.00113685,3160.7,3160.6,10.62733579]
[1642542720807,0.00113685,3160.7,3160.6,20.18108456]
[1642542721105,0.00113685,3160.7,3160.6,20.97203456]
[1642542721349,0.00113685,3160.7,3160.6,15.51386456]
[1642542721549,0.00113685,3160.7,3160.6,16.51386456]
[1642542722552,0.00113685,3160.7,3160.6,15.51386456]
[1642542730852,0.00113685,3160.7,3160.6,15.67203456]
[1642542731256,0.00113685,3160.7,3160.6,15.51386456]
[1642542732059,0.00113685,3160.7,3160.6,15.38736456]
[1642542732254,0.1265,3161.8,3160.8,2.3723918]
[1642542732497,0.1265,3162.0,3161.2,0.03365503]
[1642542732702,0.00568423,3161.7,3161.2,2.77486193]
[1642542733104,0.00568423,3161.7,3161.3,2.01999627]
[1642542733307,0.00511581,3161.6,3161.3,2.01999627]
[1642542733706,0.1265,3162.0,3161.3,2.01999627]
[1642542733707,0.00454738,3161.5,3161.3,2.01999627]
[1642542733908,0.00454738,3161.5,3161.4,2.95]
[1642542734107,0.1265,3162.0,3161.4,2.95]
[1642542734506,0.00682108,3161.9,3161.4,2.95]
[1642542734705,0.1265,3161.8,3161.4,2.95]
[1642542734905,0.13275265,3161.8,3161.4,2.95]
[1642542735205,0.00568423,3161.7,3161.4,5.43371269]
[1642542735505,0.00511581,3161.6,3161.4,2.95]
[1642542735908,0.00454738,3161.5,3161.4,2.95]
[1642542736352,0.00454738,3161.5,3161.3,2.01999627]
[1642542736757,0.00397896,3161.4,3161.3,2.01999627]
[1642542736956,0.00397896,3161.4,3161.3,6.11999627]
[1642542737556,0.00397896,3161.4,3161.3,8.69011679]
[1642542737756,0.00397896,3161.4,3161.3,6.11999627]
[1642542737958,0.00397896,3161.4,3161.3,8.80685197]
[1642542738357,0.00397896,3161.4,3161.3,4.70685197]
[1642542740201,0.00397896,3161.4,3161.3,7.31000209]
[1642542741403,0.00397896,3161.4,3161.3,7.43650209]
[1642542742704,0.00397896,3161.4,3161.3,7.31000209]
[1642542750626,0.00397896,3161.4,3161.3,8.7976667]
[1642542750812,0.00397896,3161.4,3161.3,12.5976667]
[1642542751009,0.00397896,3161.4,3161.3,12.9776667]
[1642542751010,7.896e-05,3161.4,3161.3,12.9776667]
[1642542751256,0.48615305,3162.6,3161.4,5.55]
[1642542751459,0.48615305,3162.6,3161.8,0.79056]
[1642542751658,0.00625266,3162.5,3162.0,1.93012741]
[1642542751857,0.00625266,3162.5,3162.1,0.1264]
[1642542752059,0.00568424,3162.4,3162.2,0.02415564]
[1642542752260,0.00568424,3162.4,3162.3,5.6764]
[1642542752558,0.1264,3163.4,3162.6,0.79047]
[1642542752759,0.1264,3163.4,3162.7,2.7008172]
[1642542752958,0.01080005,3163.3,3162.8,2.23761052]
[1642542753160,0.01080005,3163.3,3162.9,2.50450583]
[1642542753359,0.01080005,3163.3,3162.8,2.23761052]
[1642542753360,0.01023162,3163.2,3162.8,2.23761052]
[1642542753561,0.01023162,3163.2,3162.9,1.34118426]
[1642542753759,0.0096632,3163.1,3162.9,1.34118426]
[1642542754258,0.1264,3163.5,3162.9,1.34118426]
[1642542754259,0.00909478,3163.0,3162.9,1.34118426]
[1642542754458,0.00909478,3163.0,3162.9,3.80412722]
[1642542754663,0.00909478,3163.0,3162.9,1.34118426]
[1642542754863,0.00909478,3163.0,3162.8,2.23761052]
[1642542755302,0.00852635,3162.9,3162.8,2.23761052]
[1642542756306,0.00852635,3162.9,3162.8,3.67659399]
[1642542757211,0.13492635,3162.9,3162.8,2.23761052]
[1642542757813,0.92571635,3162.9,3162.8,2.23761052]
[1642542758013,1.22571635,3162.9,3162.8,2.23761052]
[1642542761464,0.79087,3162.6,3161.7,7.8473]
[1642542761759,0.00625266,3162.5,3161.7,3.7729]
[1642542762159,0.00568424,3162.4,3161.6,0.1264]
[1642542762363,0.00568424,3162.4,3161.8,2.68649831]
[1642542762608,0.00511581,3162.3,3161.9,2.46619018]
[1642542762810,0.00511581,3162.3,3162.0,2.35111767]
[1642542763010,1.1686,3162.9,3162.0,2.35111767]
[1642542763011,0.00454739,3162.2,3162.0,2.35111767]
[1642542763411,0.00397897,3162.1,3162.0,2.35111767]
[1642542763611,0.00397897,3162.1,3162.0,3.90030483]
[1642542764411,0.00397897,3162.1,3162.0,6.58662496]
[1642542765213,0.00397897,3162.1,3162.0,6.08662496]
[1642542766458,0.00397897,3162.1,3162.0,6.21312496]
[1642542768358,0.00397897,3162.1,3162.0,8.83260335]
[1642542770210,0.00397897,3162.1,3162.0,9.62327335]
[1642542770407,0.00397897,3162.1,3162.0,10.64144335]
[1642542771509,0.00397897,3162.1,3162.0,11.64144335]
[1642542772914,0.1265,3163.3,3162.4,0.79055]
[1642542773115,0.1265,3163.3,3162.5,2.62884076]
[1642542773315,0.00625265,3163.2,3162.5,2.62884076]
[1642542773757,0.1265,3163.3,3162.5,2.62884076]
[1642542773758,0.00568423,3163.1,3162.5,2.62884076]
[1642542773958,0.08218423,3163.3,3162.7,3.34260919]
[1642542774958,0.08218423,3163.3,3162.8,2.4906644]
[1642542775160,0.27061853,3163.4,3162.8,2.4906644]
[1642542775364,2.06346,3163.6,3162.9,0.00113685]
[1642542775365,0.1264,3163.6,3162.9,0.00113685]
[1642542775565,0.79046,3164.2,3162.9,0.00113685]
[1642542775566,0.00113685,3163.3,3162.9,0.87563685]
[1642542775759,0.00113685,3163.3,3162.9,1.00203685]
[1642542776059,0.13208423,3164.1,3162.9,0.87563685]
[1642542776260,0.13208423,3164.1,3163.0,2.83742122]
[1642542776460,0.00511581,3164.0,3163.0,2.83742122]
[1642542776659,0.00511581,3164.0,3163.8,1.19209831]
[1642542776660,0.1264,3163.9,3163.8,1.19209831]
[1642542776860,0.13094739,3163.9,3163.8,1.19209831]
[1642542777068,0.00454739,3163.9,3163.8,1.67821799]
[1642542777261,0.13094739,3163.9,3163.8,1.67821799]
[1642542777502,0.79504739,3163.9,3163.8,1.67821799]
[1642542777706,0.92144739,3163.9,3163.8,1.67821799]
[1642542779109,1.52144739,3163.9,3163.8,1.67821799]
[1642542779508,5.07144739,3163.9,3163.8,1.67821799]
[1642542781013,5.07144739,3163.9,3162.9,0.00113685]
[1642542781014,1.0905948,3163.8,3162.9,0.00113685]
[1642542781263,0.79059,3163.6,3162.9,0.00113685]
[1642542781459,0.5064,3163.5,3162.9,0.00113685]
[1642542781659,0.80867369,3163.5,3162.9,0.00113685]
[1642542781958,0.00170527,3163.4,3163.0,1.25018953]
[1642542782159,0.1264,3163.3,3163.0,1.25018953]
[1642542782358,0.1264,3163.3,3163.1,1.71140114]
[1642542782561,0.00170527,3163.4,3163.1,1.71140114]
[1642542785610,0.00170527,3163.4,3163.2,2.96382122]
[1642542785813,0.00170527,3163.4,3163.2,1.1005]
[1642542786010,0.00170527,3163.4,3163.2,0.9741]
[1642542787215,0.00170527,3163.4,3163.3,5.6764]
[1642542788769,0.00170527,3163.4,3163.3,5.55]
[1642542788958,0.00170527,3163.4,3163.2,1.1005]
[1642542789158,0.00170527,3163.4,3163.2,0.1264]
[1642542792610,0.00170527,3163.4,3163.1,1.71140114]
[1642542796359,0.00170527,3163.4,3163.2,2.44907231]
[1642542796555,0.00170527,3163.4,3163.1,1.71140114]
[1642542798964,0.00170527,3163.4,3163.2,2.45362904]
[1642542799161,0.00170527,3163.4,3163.1,1.71140114]
[1642542805465,0.00170527,3163.4,3163.2,0.01191985]
[1642542805666,0.00170527,3163.4,3163.2,0.851]
[1642542806064,0.00170527,3163.4,3163.3,6.03374062]
[1642542806465,0.00170527,3163.4,3163.3,3.6]
[1642542808111,0.00170527,3163.4,3163.2,0.851]
[1642542808311,0.00170527,3163.4,3163.1,1.71140114]
[1642542809813,0.00170527,3163.4,3163.2,2.52342978]
[1642542810214,0.00170527,3163.4,3163.1,1.71140114]
[1642542810415,0.1264,3164.1,3163.4,1.99829473]
[1642542810614,0.1264,3164.1,3163.5,1.26853477]
[1642542810813,0.1264,3164.1,3163.4,1.99829473]
[1642542810814,0.00341054,3164.0,3163.4,1.99829473]
[1642542811273,0.1264,3164.1,3163.4,1.99829473]
[1642542811274,0.00284212,3163.9,3163.4,1.99829473]
[1642542811663,0.00227369,3163.8,3163.5,2.49682506]
[1642542812063,0.00170527,3163.7,3163.4,1.99829473]
[1642542812461,0.00113685,3163.6,3163.4,1.99829473]
[1642542813062,0.00113685,3163.6,3163.5,2.46301489]
[1642542813562,0.00113685,3163.6,3163.5,3.59651489]
[1642542814062,0.00113685,3163.6,3163.5,3.57213364]
[1642542814262,0.00113685,3163.6,3163.5,3.56077565]
[1642542814462,0.00113685,3163.6,3163.5,1.1335]
[1642542814666,0.00113685,3163.6,3163.4,1.99829473]
[1642542816718,0.00113685,3163.6,3163.5,7.2970545]
[1642542817220,0.00113685,3163.6,3163.5,2.7470545]
[1642542817517,0.00113685,3163.6,3163.4,1.99829473]
[1642542819455,0.00113685,3163.6,3163.5,5.88287036]
[1642542821059,0.00113685,3163.6,3163.5,6.67315036]
[1642542822260,0.00113685,3163.6,3163.5,6.79955036]
[1642542822912,0.00113685,3163.6,3163.5,9.48473404]
[1642542823116,3.685e-05,3163.6,3163.5,9.78110401]
[1642542823412,3.685e-05,3163.6,3163.5,10.78110401]
[1642542823613,0.1264,3165.1,3164.0,0.79002]
[1642542823913,0.13492635,3165.1,3164.1,0.3222]
[1642542824112,0.13492635,3165.1,3164.1,3.15962122]
[1642542824312,0.13492635,3165.1,3164.2,1.92973548]
[1642542824513,0.00852635,3165.1,3164.2,2.92973548]
[1642542824913,0.00852635,3165.1,3164.3,1.57997]
[1642542825118,0.00852635,3165.1,3164.3,4.41739122]
[1642542825514,0.00852635,3165.1,3164.3,5.41739122]
[1642542825713,0.00852635,3165.1,3164.3,6.40159122]
[1642542825913,0.00852635,3165.1,3164.3,3.56417]
[1642542826362,0.00852635,3165.1,3164.3,7.19163482]
[1642542826562,0.00852635,3165.1,3164.5,0.79003]
[1642542826763,0.00852635,3165.1,3164.6,2.63378925]
[1642542826963,0.00852635,3165.1,3164.7,2.18307283]
[1642542827162,0.00852635,3165.1,3164.8,2.7868386]
[1642542827969,0.001814,3165.0,3164.8,2.7868386]
[1642542828369,0.0073895,3164.9,3164.8,3.5767786]
[1642542830009,0.0073895,3164.9,3164.8,5.7267786]
[1642542831011,0.0073895,3164.9,3164.8,8.1267786]
[1642542831213,0.0073895,3164.9,3164.8,5.33994]
[1642542831611,0.0073895,3164.9,3164.8,5.49811]
[1642542832013,0.0073895,3164.9,3164.8,5.62441]
[1642542832512,0.0073895,3164.9,3164.8,6.62441]
[1642542833118,1.57976,3166.4,3165.0,5.55]
[1642542833332,7.29424448,3166.8,3165.1,8.38742122]
[1642542833521,2.99259709,3167.9,3166.1,0.01204568]
[1642542833795,1.5807895,3168.6,3167.0,0.02810476]
[1642542833985,0.7894947,3168.4,3167.7,0.01245478]
[1642542834183,1.5808033,3168.8,3167.8,3.18842587]
[1642542834184,0.01705271,3167.9,3167.8,3.18842587]
[1642542834382,0.01705271,3167.9,3167.8,1.89015363]
[1642542834581,0.1262,3168.7,3167.8,4.72757485]
[1642542834582,0.14780009,3168.7,3167.8,4.72757485]
[1642542834786,0.14780009,3168.7,3168.3,16.5]
[1642542834992,0.02103167,3168.6,3168.3,16.5]
[1642542835286,0.14666325,3168.5,3168.4,1.91411692]
[1642542835490,0.02046325,3168.5,3168.4,1.91411692]
[1642542835787,0.14666325,3168.5,3168.3,1.91411692]
[1642542836088,0.14609482,3168.4,3167.2,10.4922]
[1642542836287,0.14609482,3168.4,3167.4,2.28356035]
[1642542836488,0.0193264,3168.3,3167.4,2.28356035]
[1642542836687,1.6227651,3168.2,3167.4,2.28356035]
[1642542836889,1.64152308,3168.2,3167.4,2.28356035]
[1642542837087,0.01818955,3168.1,3166.7,3.9963305]
[1642542837293,0.1262,3168.0,3166.7,0.0022305]
[1642542837517,0.3,3167.7,3166.4,0.1262]
[1642542837715,0.1263,3167.6,3166.2,1.36469997]
[1642542837917,0.14164744,3167.6,3166.2,1.36469997]
[1642542838119,0.01477901,3167.5,3166.5,2.14665998]
[1642542838315,0.1263,3167.4,3166.3,1.2697]
[1642542838516,0.14051059,3167.4,3166.3,1.2697]
[1642542838715,0.01364217,3167.3,3166.3,1.1434]
[1642542838915,0.1263,3167.2,3166.3,1.1434]
[1642542839115,0.13937374,3167.2,3166.2,1.2265]
[1642542839317,1.54240077,3167.0,3166.2,1.2265]
[1642542839516,1.54240077,3167.0,3166.1,7.2578]
[1642542839517,0.1263,3166.9,3166.1,7.2578]
[1642542839716,0.01136847,3166.9,3166.1,7.2578]
[1642542839917,0.01080005,3166.8,3166.1,7.2578]
[1642542840320,0.01023162,3166.7,3166.2,1.5789852]
[1642542840519,0.01023162,3166.7,3166.4,2.34212011]
[1642542840720,0.0096632,3166.6,3166.4,2.34212011]
[1642542841117,1.54240077,3167.0,3166.1,7.2578]
[1642542841118,0.00909478,3166.5,3166.1,7.2578]
[1642542841665,0.00852635,3166.4,3166.1,7.2578]
[1642542841866,1.22043013,3166.3,3166.1,7.2578]
[1642542842068,1.22838806,3166.3,3166.1,3.9564]
[1642542842266,0.38,3167.5,3166.1,4.94347925]
[1642542842267,0.00738951,3166.2,3166.1,4.94347925]
[1642542843271,0.00738951,3166.2,3166.1,7.78090047]
[1642542843767,0.00738951,3166.2,3166.1,5.06977925]
[1642542844268,0.00738951,3166.2,3166.1,7.62562681]
[1642542844668,1.33491901,3166.7,3166.2,0.01477901]
[1642542844869,0.1263,3167.6,3166.2,0.01477901]
[1642542845117,0.00227369,3166.6,3166.2,0.01477901]
[1642542845318,0.00227369,3166.6,3166.3,0.1263]
[1642542845521,0.1263,3168.1,3166.5,5.70817]
[1642542845722,0.1263,3168.1,3166.6,3.24202336]
[1642542845925,0.1263,3168.1,3166.9,0.78937]
[1642542845928,0.01023162,3168.0,3166.9,0.78937]
[1642542846122,0.01023162,3168.0,3167.1,1.4430862]
[1642542846123,1.44394678,3167.8,3167.1,1.4430862]
[1642542846322,1.44394678,3167.8,3167.2,4.51430348]
[1642542846521,0.00852635,3167.7,3167.0,2.63508048]
[1642542846721,0.00852635,3167.7,3167.2,0.7893331]
[1642542846923,0.00795793,3167.6,3167.2,0.7893331]
[1642542847124,0.00795793,3167.6,3166.9,0.1262]
[1642542847324,1.23503375,3167.0,3166.9,0.1262]
[1642542847724,1.23958113,3167.0,3166.5,1.84079161]
[1642542847925,1.23958113,3167.0,3166.3,0.1263]
[1642542848124,0.00397896,3166.9,3166.3,0.1263]
[1642542848324,0.00397896,3166.9,3166.3,4.04192726]
[1642542848527,0.00341054,3166.8,3166.3,4.04192726]
[1642542848763,1.24145447,3166.5,3166.4,5.55]
[1642542849167,1.24315974,3166.5,3166.4,7.26135081]
[1642542849367,0.00170527,3166.5,3166.4,7.26135081]
[1642542849970,0.00170527,3166.5,3166.4,9.79112679]
[1642542850167,0.00170527,3166.5,3166.4,12.94692679]
[1642542850767,0.00170527,3166.5,3166.4,12.87811945]
[1642542850969,0.00170527,3166.5,3166.4,7.26135081]
[1642542851369,0.97248271,3166.8,3166.5,3.45]
[1642542851769,0.00113684,3166.7,3166.5,3.45]
[1642542852715,0.00113684,3166.7,3166.6,7.6914901]
[1642542853315,0.00113684,3166.7,3166.6,2.4414901]
[1642542853516,0.00113684,3166.7,3166.4,3.29037301]
[1642542854916,0.00113684,3166.7,3166.4,1.71135081]
[1642542855321,0.00113684,3166.7,3166.2,0.01477901]
[1642542855719,0.00113684,3166.7,3166.3,0.00113685]
[1642542856371,0.00113684,3166.7,3166.4,2.17504431]
[1642542856372,1.44682859,3166.6,3166.4,2.17504431]
[1642542856574,1.44682859,3166.6,3166.3,0.00113685]
[1642542857171,0.00113684,3166.7,3166.3,0.00113685]
[1642542857373,0.00113684,3166.7,3166.3,2.83329131]
[1642542857571,0.00113684,3166.7,3166.3,3.63749131]
[1642542857770,0.00113684,3166.7,3166.4,0.78956]
[1642542857970,0.00113684,3166.7,3166.5,5.08239579]
[1642542858174,0.00113684,3166.7,3166.5,2.34065884]
[1642542858977,1.39115446,3166.6,3166.5,2.34065884]
[1642542860008,1.39115446,3166.6,3166.3,0.00113685]
[1642542861209,3.13495438,3166.6,3166.3,0.00113685]
[1642542861410,0.1263,3166.5,3166.3,0.00113685]
[1642542862613,2.24419703,3166.5,3166.3,0.00113685]
[1642542862812,0.1263,3166.5,3166.3,0.00113685]
[1642542863413,0.00113684,3166.7,3166.3,0.00113685]
[1642542863881,0.00113684,3166.7,3166.4,2.32009872]
[1642542865074,0.00113684,3166.7,3166.3,2.68436663]
[1642542865471,0.00113684,3166.7,3166.5,2.68322978]
[1642542866371,0.00113684,3166.7,3166.3,3.47403373]
[1642542866972,0.00113684,3166.7,3166.3,2.68436663]
[1642542867171,0.00113684,3166.7,3166.4,4.87983722]
[1642542867809,0.00113684,3166.7,3166.5,2.68322978]
[1642542868310,0.00113684,3166.7,3166.5,5.12098493]
[1642542868517,0.00113684,3166.7,3166.6,3.59267938]
[1642542868716,0.00113684,3166.7,3166.6,1.24629068]
[1642542869112,0.00113684,3166.7,3166.6,3.7314188]
[1642542869315,0.00113684,3166.7,3166.6,2.61142812]
[1642542869512,0.00113684,3166.7,3166.6,11.63567324]
[1642542869715,0.00113684,3166.7,3166.6,5.29613324]
[1642542869916,0.00113684,3166.7,3166.6,2.80952978]
[1642542870716,0.00113684,3166.7,3166.6,2.68322978]
[1642542871361,0.00113684,3166.7,3166.6,5.12707734]
[1642542871760,0.00113684,3166.7,3166.6,2.68322978]
[1642542872562,0.00113684,3166.7,3166.6,5.78322978]
[1642542872864,0.00113684,3166.7,3166.6,8.33088667]